[Event "Early-Titled-Tuesday-Blitz-May-28-2024"]
[Site "Chess.com"]
[Date "2024.05.28"]
[Round "2"]
[White "Al_Shima"]
[Black "ritanovikova"]
[Result "1-0"]
[WhiteElo "2479"]
[BlackElo "2174"]
[TimeControl "180+1"]
[EndTime "8:17:17 PDT"]
[Termination "Al_Shima won by resignation"]

1. b3 {[%clk 0:02:59.2]} 1... Nf6 {[%clk 0:02:50.1]} 2. Bb2 {[%clk 0:02:58.9]}
2... g6 {[%clk 0:02:50.1]} 3. Bxf6 {[%clk 0:02:59.4]} 3... exf6 {[%clk
0:02:50.2]} 4. c4 {[%clk 0:02:59.9]} 4... Bg7 {[%clk 0:02:50]} 5. Nc3 {[%clk
0:03:00.1]} 5... O-O {[%clk 0:02:50.1]} 6. Rc1 {[%clk 0:03:00.6]} 6... f5 {[%clk
0:02:49.9]} 7. g3 {[%clk 0:03:01.1]} 7... Nc6 {[%clk 0:02:29.6]} 8. Bg2 {[%clk
0:03:00]} 8... Ne7 {[%clk 0:02:24.9]} 9. e3 {[%clk 0:03:00]} 9... c6 {[%clk
0:02:23.8]} 10. Nge2 {[%clk 0:02:59]} 10... d5 {[%clk 0:02:22.5]} 11. cxd5
{[%clk 0:02:58.9]} 11... Nxd5 {[%clk 0:02:23]} 12. Nxd5 {[%clk 0:02:59.1]} 12...
cxd5 {[%clk 0:02:23.9]} 13. d4 {[%clk 0:02:58.9]} 13... Be6 {[%clk 0:02:21]} 14.
O-O {[%clk 0:02:58.1]} 14... Qd7 {[%clk 0:02:19.8]} 15. h4 {[%clk 0:02:56.7]}
15... Rac8 {[%clk 0:02:14.3]} 16. Qd3 {[%clk 0:02:56.8]} 16... Rxc1 {[%clk
0:02:13.3]} 17. Rxc1 {[%clk 0:02:57.7]} 17... Rc8 {[%clk 0:02:13.4]} 18. Rxc8+
{[%clk 0:02:53.4]} 18... Qxc8 {[%clk 0:02:14.3]} 19. Nf4 {[%clk 0:02:51.9]}
19... Bh6 {[%clk 0:02:13.2]} 20. Bxd5 {[%clk 0:02:38.8]} 20... Bxf4 {[%clk
0:02:05.2]} 21. Bxe6 {[%clk 0:02:38.4]} 21... Qc1+ {[%clk 0:01:57]} 22. Kg2
{[%clk 0:02:38]} 22... Bc7 {[%clk 0:01:15.5]} 23. Bc4 {[%clk 0:02:33.7]} 23...
Ba5 {[%clk 0:01:12.2]} 24. d5 {[%clk 0:02:21.5]} 24... a6 {[%clk 0:01:03.3]} 25.
d6 {[%clk 0:02:12.9]} 25... b5 {[%clk 0:01:03.2]} 26. Bd5 {[%clk 0:02:10.3]}
26... Qc8 {[%clk 0:01:00.1]} 27. Bf3 {[%clk 0:02:08.4]} 27... Qd7 {[%clk
0:00:57.2]} 28. Qd5 {[%clk 0:02:07.8]} 28... Bb4 {[%clk 0:00:53.9]} 29. Qa8+
{[%clk 0:01:56.3]} 29... Kg7 {[%clk 0:00:54]} 30. Qxa6 {[%clk 0:01:56.7]} 30...
Bxd6 {[%clk 0:00:52.6]} 31. Bc6 {[%clk 0:01:55.8]} 31... Qe7 {[%clk 0:00:47.5]}
32. Qxb5 {[%clk 0:01:53.9]} 32... h6 {[%clk 0:00:43.1]} 33. a4 {[%clk 0:01:53]}
33... g5 {[%clk 0:00:43.1]} 34. hxg5 {[%clk 0:01:53.9]} 34... hxg5 {[%clk
0:00:42.9]} 35. Qxf5 {[%clk 0:01:54.2]} 35... f6 {[%clk 0:00:39.9]} 36. a5
{[%clk 0:01:53.2]} 36... Qc7 {[%clk 0:00:39.6]} 37. Qd7+ {[%clk 0:01:53]} 37...
Qxd7 {[%clk 0:00:38.9]} 38. Bxd7 {[%clk 0:01:53.9]} 38... Bc5 {[%clk 0:00:29.2]}
39. Kf3 {[%clk 0:01:53.6]} 39... Kf7 {[%clk 0:00:29.3]} 40. Ke4 {[%clk 0:01:54]}
40... Ke7 {[%clk 0:00:29.9]} 41. Kd5 {[%clk 0:01:51.8]} 41... Ba7 {[%clk
0:00:28.3]} 42. Bf5 {[%clk 0:01:51.1]} 42... Kd8 {[%clk 0:00:26.3]} 43. Kc6
{[%clk 0:01:50.4]} 1-0

[Event "Early-Titled-Tuesday-Blitz-May-28-2024"]
[Site "Chess.com"]
[Date "2024.05.28"]
[Round "2"]
[White "bazar-wokzal"]
[Black "chessdjw"]
[Result "1-0"]
[WhiteElo "2581"]
[BlackElo "2793"]
[TimeControl "180+1"]
[EndTime "8:17:19 PDT"]
[Termination "bazar-wokzal won by checkmate"]

1. e4 {[%clk 0:03:00.9]} 1... e5 {[%clk 0:02:59.9]} 2. Bc4 {[%clk 0:03:00]} 2...
Nf6 {[%clk 0:02:59.8]} 3. d3 {[%clk 0:02:59.2]} 3... c6 {[%clk 0:02:59.4]} 4.
Nf3 {[%clk 0:02:59.1]} 4... d5 {[%clk 0:02:56.5]} 5. Bb3 {[%clk 0:02:59.4]} 5...
Bb4+ {[%clk 0:02:55.3]} 6. c3 {[%clk 0:02:59.3]} 6... Bd6 {[%clk 0:02:55.3]} 7.
Bg5 {[%clk 0:02:59.4]} 7... dxe4 {[%clk 0:02:35]} 8. dxe4 {[%clk 0:03:00.3]}
8... h6 {[%clk 0:02:35.3]} 9. Bh4 {[%clk 0:02:59.9]} 9... O-O {[%clk 0:02:25.8]}
10. Nbd2 {[%clk 0:02:59.4]} 10... Qe7 {[%clk 0:02:23.6]} 11. Qe2 {[%clk
0:02:53.3]} 11... Be6 {[%clk 0:02:11.6]} 12. h3 {[%clk 0:02:46.3]} 12... Nbd7
{[%clk 0:02:08.1]} 13. g4 {[%clk 0:02:45.9]} 13... g5 {[%clk 0:01:49.2]} 14. Bg3
{[%clk 0:02:45.5]} 14... Bxb3 {[%clk 0:01:37.5]} 15. axb3 {[%clk 0:02:44.7]}
15... b5 {[%clk 0:01:17.4]} 16. Nh2 {[%clk 0:02:43.3]} 16... a5 {[%clk
0:01:11.5]} 17. Nhf1 {[%clk 0:02:40.5]} 17... Bc5 {[%clk 0:00:51.1]} 18. h4
{[%clk 0:02:37.1]} 18... Rfd8 {[%clk 0:00:47.8]} 19. hxg5 {[%clk 0:02:35.6]}
19... hxg5 {[%clk 0:00:47.9]} 20. Ne3 {[%clk 0:02:35.9]} 20... Bxe3 {[%clk
0:00:44.2]} 21. Qxe3 {[%clk 0:02:22.8]} 21... Nxg4 {[%clk 0:00:28.5]} 22. Qf3
{[%clk 0:02:22.8]} 22... Qe6 {[%clk 0:00:27.7]} 23. Rh5 {[%clk 0:02:10.3]} 23...
f6 {[%clk 0:00:23.9]} 24. O-O-O {[%clk 0:02:06.4]} 24... Nc5 {[%clk 0:00:23.5]}
25. Rdh1 {[%clk 0:02:03.8]} 25... a4 {[%clk 0:00:15.8]} 26. Rh8+ {[%clk
0:01:52.4]} 26... Kg7 {[%clk 0:00:16.2]} 27. R8h7+ {[%clk 0:01:48.9]} 27... Kg8
{[%clk 0:00:11]} 28. Rh8+ {[%clk 0:01:37]} 28... Kg7 {[%clk 0:00:11.2]} 29.
R1h7+ {[%clk 0:01:37.7]} 29... Kg6 {[%clk 0:00:11.6]} 30. Qh1 {[%clk 0:01:37.8]}
30... Nxb3+ {[%clk 0:00:01]} 31. Nxb3 {[%clk 0:01:37.3]} 31... axb3 {[%clk
0:00:01.5]} 32. Qh5# {[%clk 0:01:36.1]} 1-0

[Event "Early-Titled-Tuesday-Blitz-May-28-2024"]
[Site "Chess.com"]
[Date "2024.05.28"]
[Round "2"]
[White "Nf3c5"]
[Black "topce"]
[Result "0-1"]
[WhiteElo "2564"]
[BlackElo "2387"]
[TimeControl "180+1"]
[EndTime "8:17:20 PDT"]
[Termination "topce won on time"]

1. e4 {[%clk 0:02:53.5]} 1... c5 {[%clk 0:03:00.3]} 2. Nc3 {[%clk 0:02:50.7]}
2... Nc6 {[%clk 0:02:59.3]} 3. Bb5 {[%clk 0:02:49.5]} 3... Nd4 {[%clk
0:02:58.7]} 4. Nf3 {[%clk 0:02:45.8]} 4... Nxb5 {[%clk 0:02:57]} 5. Nxb5 {[%clk
0:02:45]} 5... d6 {[%clk 0:02:57.6]} 6. d4 {[%clk 0:02:44.3]} 6... a6 {[%clk
0:02:57.2]} 7. Nc3 {[%clk 0:02:44.8]} 7... cxd4 {[%clk 0:02:57.5]} 8. Qxd4
{[%clk 0:02:45.5]} 8... e5 {[%clk 0:02:55.6]} 9. Qd3 {[%clk 0:02:44.8]} 9... h6
{[%clk 0:02:47.7]} 10. a4 {[%clk 0:02:36.1]} 10... Be6 {[%clk 0:02:46.8]} 11.
Nd2 {[%clk 0:02:36.5]} 11... Rc8 {[%clk 0:02:46.1]} 12. b3 {[%clk 0:02:25.7]}
12... Qc7 {[%clk 0:02:39.5]} 13. Bb2 {[%clk 0:02:25]} 13... Nf6 {[%clk
0:02:38.7]} 14. Nf1 {[%clk 0:02:24.9]} 14... d5 {[%clk 0:02:19.5]} 15. exd5
{[%clk 0:02:20.8]} 15... e4 {[%clk 0:02:14.6]} 16. Nxe4 {[%clk 0:01:53.9]} 16...
Nxe4 {[%clk 0:01:48]} 17. Qxe4 {[%clk 0:01:49.5]} 17... Qxc2 {[%clk 0:01:44.2]}
18. Qxc2 {[%clk 0:01:16.8]} 18... Rxc2 {[%clk 0:01:45.1]} 19. dxe6 {[%clk
0:01:16.4]} 19... Bb4+ {[%clk 0:01:36.9]} 20. Kd1 {[%clk 0:01:12]} 20... Rxb2
{[%clk 0:01:36.1]} 21. Ne3 {[%clk 0:01:02.8]} 21... fxe6 {[%clk 0:01:30.9]} 22.
Nc4 {[%clk 0:00:43.3]} 22... Rxf2 {[%clk 0:01:27.2]} 23. Rc1 {[%clk 0:00:38.4]}
23... b5 {[%clk 0:01:14.5]} 24. axb5 {[%clk 0:00:21.1]} 24... axb5 {[%clk
0:01:11.2]} 0-1

[Event "Early-Titled-Tuesday-Blitz-May-28-2024"]
[Site "Chess.com"]
[Date "2024.05.28"]
[Round "2"]
[White "N_I_Chess"]
[Black "MVM2008"]
[Result "0-1"]
[WhiteElo "2216"]
[BlackElo "2490"]
[TimeControl "180+1"]
[EndTime "8:17:21 PDT"]
[Termination "MVM2008 won on time"]

1. d4 {[%clk 0:03:00.9]} 1... Nf6 {[%clk 0:03:00]} 2. c4 {[%clk 0:03:00.7]} 2...
e6 {[%clk 0:03:00.4]} 3. Nc3 {[%clk 0:02:59.2]} 3... Bb4 {[%clk 0:03:01]} 4. Bd2
{[%clk 0:02:59.3]} 4... c5 {[%clk 0:03:00.9]} 5. e3 {[%clk 0:02:58.7]} 5... O-O
{[%clk 0:02:59.4]} 6. Bd3 {[%clk 0:02:57.3]} 6... d5 {[%clk 0:02:58.9]} 7. Nge2
{[%clk 0:02:56.7]} 7... dxc4 {[%clk 0:02:57.8]} 8. Bxc4 {[%clk 0:02:57.6]} 8...
Nc6 {[%clk 0:02:57]} 9. dxc5 {[%clk 0:02:55.3]} 9... Bxc5 {[%clk 0:02:57]} 10.
O-O {[%clk 0:02:54.9]} 10... Ne5 {[%clk 0:02:51.3]} 11. Bb3 {[%clk 0:02:46.8]}
11... Nfg4 {[%clk 0:02:35.3]} 12. h3 {[%clk 0:02:17.3]} 12... Qh4 {[%clk
0:02:25.8]} 13. Nf4 {[%clk 0:01:59.2]} 13... Nf6 {[%clk 0:02:00.9]} 14. Rc1
{[%clk 0:01:39.8]} 14... Rd8 {[%clk 0:01:55.4]} 15. Qc2 {[%clk 0:01:28.2]} 15...
g5 {[%clk 0:01:52.2]} 16. Ne4 {[%clk 0:01:07.5]} 16... gxf4 {[%clk 0:01:40.7]}
17. Nxf6+ {[%clk 0:00:16.1]} 17... Qxf6 {[%clk 0:01:33.7]} 18. Qxc5 {[%clk
0:00:16.2]} 18... Rxd2 {[%clk 0:01:27.5]} 19. exf4 {[%clk 0:00:10]} 19... Qxf4
{[%clk 0:01:15.1]} 20. Qc7 {[%clk 0:00:05.9]} 20... Bd7 {[%clk 0:01:05.1]} 21.
Rce1 {[%clk 0:00:04.7]} 21... Nf3+ {[%clk 0:01:04.4]} 22. gxf3 {[%clk
0:00:04.2]} 22... Qxc7 {[%clk 0:01:04.6]} 0-1

[Event "Early-Titled-Tuesday-Blitz-May-28-2024"]
[Site "Chess.com"]
[Date "2024.05.28"]
[Round "2"]
[White "ab-lsv"]
[Black "Grebnev_A"]
[Result "0-1"]
[WhiteElo "2327"]
[BlackElo "2541"]
[TimeControl "180+1"]
[EndTime "8:17:25 PDT"]
[Termination "Grebnev_A won on time"]

1. d4 {[%clk 0:02:59.7]} 1... Nf6 {[%clk 0:02:59.8]} 2. c4 {[%clk 0:03:00]} 2...
e6 {[%clk 0:02:59.5]} 3. Nc3 {[%clk 0:03:00.3]} 3... Bb4 {[%clk 0:02:59.6]} 4.
Qc2 {[%clk 0:03:00.7]} 4... h6 {[%clk 0:02:58.1]} 5. Nf3 {[%clk 0:02:58.7]} 5...
c5 {[%clk 0:02:56.5]} 6. dxc5 {[%clk 0:02:56.2]} 6... Na6 {[%clk 0:02:55.5]} 7.
a3 {[%clk 0:02:50.2]} 7... Bxc3+ {[%clk 0:02:55.4]} 8. Qxc3 {[%clk 0:02:48.2]}
8... Nxc5 {[%clk 0:02:56.3]} 9. e3 {[%clk 0:02:37.2]} 9... a5 {[%clk 0:02:53.5]}
10. b3 {[%clk 0:02:35.7]} 10... b6 {[%clk 0:02:49.8]} 11. Be2 {[%clk 0:02:33.4]}
11... O-O {[%clk 0:02:50]} 12. Bb2 {[%clk 0:02:32.8]} 12... Ba6 {[%clk
0:02:45.6]} 13. O-O {[%clk 0:02:31.8]} 13... d5 {[%clk 0:02:42.5]} 14. Rfd1
{[%clk 0:02:31.3]} 14... Qe7 {[%clk 0:02:42.1]} 15. Bf1 {[%clk 0:01:56.8]} 15...
a4 {[%clk 0:02:40.4]} 16. b4 {[%clk 0:01:46.1]} 16... Nb3 {[%clk 0:02:39.8]} 17.
cxd5 {[%clk 0:01:40.8]} 17... Bxf1 {[%clk 0:02:37.8]} 18. d6 {[%clk 0:01:31.8]}
18... Qd7 {[%clk 0:02:37.8]} 19. Kxf1 {[%clk 0:01:29.7]} 19... Nxa1 {[%clk
0:02:37]} 20. Bxa1 {[%clk 0:01:29.4]} 20... Qb5+ {[%clk 0:02:36.5]} 21. Kg1
{[%clk 0:01:27.9]} 21... Rac8 {[%clk 0:02:36]} 22. Qe5 {[%clk 0:01:16]} 22...
Qd3 {[%clk 0:02:27.6]} 23. Qd4 {[%clk 0:00:50]} 23... Qxa3 {[%clk 0:02:08.7]}
24. d7 {[%clk 0:00:20.3]} 24... Rcd8 {[%clk 0:02:07.5]} 25. Ne5 {[%clk
0:00:18.8]} 25... Kh8 {[%clk 0:01:57.5]} 26. g3 {[%clk 0:00:16.8]} 26... Qb3
{[%clk 0:01:55.8]} 27. Rc1 {[%clk 0:00:09.2]} 27... Qd5 {[%clk 0:01:49]} 28. Qf4
{[%clk 0:00:07.4]} 28... Kg8 {[%clk 0:01:45.6]} 29. Bd4 {[%clk 0:00:04.2]} 29...
Nxd7 {[%clk 0:01:42.7]} 30. Nxd7 {[%clk 0:00:02.8]} 30... Rxd7 {[%clk
0:01:43.2]} 31. Qg4 {[%clk 0:00:01.6]} 31... e5 {[%clk 0:01:42.3]} 32. Bxb6
{[%clk 0:00:01.6]} 32... a3 {[%clk 0:01:40.2]} 33. Bc5 {[%clk 0:00:01.1]} 33...
Ra8 {[%clk 0:01:38.8]} 34. Ra1 {[%clk 0:00:01.1]} 34... a2 {[%clk 0:01:38.8]}
0-1

[Event "Early-Titled-Tuesday-Blitz-May-28-2024"]
[Site "Chess.com"]
[Date "2024.05.28"]
[Round "2"]
[White "highlama"]
[Black "zverr1"]
[Result "1-0"]
[WhiteElo "2407"]
[BlackElo "2629"]
[TimeControl "180+1"]
[EndTime "8:17:29 PDT"]
[Termination "highlama won by resignation"]

1. c4 {[%clk 0:03:00.9]} 1... c5 {[%clk 0:02:57.4]} 2. Nf3 {[%clk 0:03:00.3]}
2... Nc6 {[%clk 0:02:54.1]} 3. g3 {[%clk 0:02:59.5]} 3... g6 {[%clk 0:02:52.3]}
4. Bg2 {[%clk 0:02:58.3]} 4... e5 {[%clk 0:02:52.1]} 5. O-O {[%clk 0:02:57.9]}
5... Bg7 {[%clk 0:02:51.6]} 6. Nc3 {[%clk 0:02:55.1]} 6... d6 {[%clk 0:02:51.6]}
7. a3 {[%clk 0:02:53.3]} 7... Be6 {[%clk 0:02:49.7]} 8. d3 {[%clk 0:02:51.3]}
8... a5 {[%clk 0:02:46.4]} 9. Ng5 {[%clk 0:02:50.9]} 9... Nge7 {[%clk 0:02:32]}
10. Nxe6 {[%clk 0:02:49.7]} 10... fxe6 {[%clk 0:02:32.9]} 11. Bh3 {[%clk
0:02:47.2]} 11... Nf5 {[%clk 0:02:33.2]} 12. Rb1 {[%clk 0:02:42.2]} 12... O-O
{[%clk 0:02:32.5]} 13. Bd2 {[%clk 0:02:38.3]} 13... Qe7 {[%clk 0:02:23]} 14. Ne4
{[%clk 0:02:31.2]} 14... h6 {[%clk 0:02:13.3]} 15. Nc3 {[%clk 0:02:24.4]} 15...
Kh7 {[%clk 0:02:12.4]} 16. e3 {[%clk 0:02:19.7]} 16... Rfd8 {[%clk 0:02:03.7]}
17. Qc2 {[%clk 0:02:17.7]} 17... d5 {[%clk 0:01:51.8]} 18. Na4 {[%clk
0:02:17.1]} 18... Rac8 {[%clk 0:01:26.7]} 19. cxd5 {[%clk 0:02:11.9]} 19... exd5
{[%clk 0:01:26.8]} 20. Qxc5 {[%clk 0:02:10.8]} 20... Qf7 {[%clk 0:01:27.5]} 21.
Nb6 {[%clk 0:02:04.9]} 21... Rc7 {[%clk 0:01:23.5]} 22. Rfc1 {[%clk 0:02:04.7]}
22... Bf8 {[%clk 0:00:45.5]} 23. Qb5 {[%clk 0:01:57.5]} 23... Bg7 {[%clk
0:00:38.2]} 24. Bg2 {[%clk 0:01:53.7]} 24... e4 {[%clk 0:00:36.3]} 25. d4 {[%clk
0:01:50.7]} 25... Re7 {[%clk 0:00:30.3]} 26. Bxa5 {[%clk 0:01:49.1]} 26... Rf8
{[%clk 0:00:27]} 27. Be1 {[%clk 0:01:48.4]} 27... h5 {[%clk 0:00:25.2]} 28. Qxd5
{[%clk 0:01:45.8]} 28... Qf6 {[%clk 0:00:23.8]} 29. Nd7 {[%clk 0:01:43.3]} 29...
Rxd7 {[%clk 0:00:19]} 30. Qxd7 {[%clk 0:01:44.2]} 30... Nfxd4 {[%clk 0:00:15.3]}
31. exd4 {[%clk 0:01:41.7]} 31... Nxd4 {[%clk 0:00:16.2]} 32. Rc7 {[%clk
0:01:41.1]} 32... Ne6 {[%clk 0:00:12.2]} 33. Rxb7 {[%clk 0:01:40.2]} 33... Qf5
{[%clk 0:00:07.3]} 34. Rd1 {[%clk 0:01:36.9]} 34... Qe5 {[%clk 0:00:05.5]} 35.
Rd5 {[%clk 0:01:35.5]} 35... Qf6 {[%clk 0:00:05.3]} 36. Rd6 {[%clk 0:01:34.5]}
36... Rd8 {[%clk 0:00:04.3]} 37. Qxe6 {[%clk 0:01:31.3]} 37... Rxd6 {[%clk
0:00:04.9]} 38. Qxf6 {[%clk 0:01:31.3]} 38... Rxf6 {[%clk 0:00:05.8]} 39. Bc3
{[%clk 0:01:31.1]} 1-0

[Event "Early-Titled-Tuesday-Blitz-May-28-2024"]
[Site "Chess.com"]
[Date "2024.05.28"]
[Round "2"]
[White "TitarovVasiliYouTube"]
[Black "Thunderbolt135"]
[Result "0-1"]
[WhiteElo "2584"]
[BlackElo "2882"]
[TimeControl "180+1"]
[EndTime "8:17:32 PDT"]
[Termination "Thunderbolt135 won by resignation"]

1. g3 {[%clk 0:03:00.9]} 1... e5 {[%clk 0:02:57.6]} 2. Bg2 {[%clk 0:03:00.6]}
2... Nf6 {[%clk 0:02:58.3]} 3. d3 {[%clk 0:03:00.4]} 3... d5 {[%clk 0:02:58.3]}
4. Nd2 {[%clk 0:03:01.3]} 4... Nc6 {[%clk 0:02:58.3]} 5. Ngf3 {[%clk 0:03:01.2]}
5... Bc5 {[%clk 0:02:57.9]} 6. O-O {[%clk 0:03:01.2]} 6... O-O {[%clk
0:02:58.1]} 7. e4 {[%clk 0:03:00.4]} 7... dxe4 {[%clk 0:02:58.5]} 8. dxe4 {[%clk
0:02:57.7]} 8... a5 {[%clk 0:02:56.6]} 9. a4 {[%clk 0:02:57.1]} 9... Qe7 {[%clk
0:02:54.6]} 10. c3 {[%clk 0:02:57.2]} 10... Rd8 {[%clk 0:02:54.2]} 11. Qe2
{[%clk 0:02:53.2]} 11... b6 {[%clk 0:02:54.5]} 12. Nc4 {[%clk 0:02:48.6]} 12...
Ba6 {[%clk 0:02:55]} 13. b3 {[%clk 0:02:45.7]} 13... Ne8 {[%clk 0:02:53.6]} 14.
Be3 {[%clk 0:02:43.5]} 14... Bxe3 {[%clk 0:02:53.3]} 15. Qxe3 {[%clk 0:02:42.7]}
15... Bxc4 {[%clk 0:02:53.4]} 16. bxc4 {[%clk 0:02:43.6]} 16... Nd6 {[%clk
0:02:53.4]} 17. Nd2 {[%clk 0:02:37.2]} 17... Nb7 {[%clk 0:02:53.9]} 18. Nb3
{[%clk 0:02:30.7]} 18... Qe6 {[%clk 0:02:34.5]} 19. Qe2 {[%clk 0:02:16.9]} 19...
Nd6 {[%clk 0:02:25.4]} 20. Nd2 {[%clk 0:02:15.5]} 20... Nb8 {[%clk 0:02:25.9]}
21. f4 {[%clk 0:01:37]} 21... Nd7 {[%clk 0:02:25.3]} 22. f5 {[%clk 0:01:36.8]}
22... Qe7 {[%clk 0:02:21.1]} 23. g4 {[%clk 0:01:32.7]} 23... Nc5 {[%clk
0:02:17.2]} 24. Qe3 {[%clk 0:01:12.4]} 24... f6 {[%clk 0:02:16.7]} 25. h4 {[%clk
0:01:11.7]} 25... Qf7 {[%clk 0:02:16.2]} 26. Qe2 {[%clk 0:01:09.5]} 26... Qe8
{[%clk 0:02:08.1]} 27. g5 {[%clk 0:00:56.2]} 27... Nxa4 {[%clk 0:02:00.9]} 28.
Rf3 {[%clk 0:00:47.8]} 28... Nc5 {[%clk 0:01:51.8]} 29. Rg3 {[%clk 0:00:47.9]}
29... Kh8 {[%clk 0:01:50.7]} 30. Qe3 {[%clk 0:00:36.7]} 30... Qf7 {[%clk
0:01:36.3]} 31. g6 {[%clk 0:00:34.6]} 31... Qg8 {[%clk 0:01:32.8]} 32. gxh7
{[%clk 0:00:34.6]} 32... Qxh7 {[%clk 0:01:33.7]} 33. h5 {[%clk 0:00:33.4]} 33...
Nf7 {[%clk 0:01:26]} 34. Bf1 {[%clk 0:00:29.3]} 34... Qh6 {[%clk 0:01:24.5]} 35.
Kf2 {[%clk 0:00:25.7]} 35... Rxd2+ {[%clk 0:01:23.4]} 36. Kg1 {[%clk 0:00:24.2]}
36... Qxe3+ {[%clk 0:01:22.1]} 37. Rxe3 {[%clk 0:00:22.8]} 37... Rad8 {[%clk
0:01:23]} 38. h6 {[%clk 0:00:17.2]} 0-1

[Event "Early-Titled-Tuesday-Blitz-May-28-2024"]
[Site "Chess.com"]
[Date "2024.05.28"]
[Round "2"]
[White "Rsnr"]
[Black "JonasEilenberg"]
[Result "1-0"]
[WhiteElo "2907"]
[BlackElo "2604"]
[TimeControl "180+1"]
[EndTime "8:17:35 PDT"]
[Termination "Rsnr won by resignation"]

1. d4 {[%clk 0:03:00]} 1... d5 {[%clk 0:03:00.2]} 2. Nf3 {[%clk 0:02:58.7]} 2...
Nf6 {[%clk 0:02:59.5]} 3. c4 {[%clk 0:02:59.1]} 3... e6 {[%clk 0:02:59.3]} 4. e3
{[%clk 0:02:56.4]} 4... a6 {[%clk 0:02:42.3]} 5. b3 {[%clk 0:02:55.6]} 5... Be7
{[%clk 0:02:39.9]} 6. Bd3 {[%clk 0:02:55.9]} 6... O-O {[%clk 0:02:40.4]} 7. O-O
{[%clk 0:02:56.5]} 7... Nbd7 {[%clk 0:02:39.7]} 8. Bb2 {[%clk 0:02:57]} 8... b6
{[%clk 0:02:39.3]} 9. Nc3 {[%clk 0:02:54.8]} 9... Bb7 {[%clk 0:02:39.5]} 10. Qc2
{[%clk 0:02:54.5]} 10... Rc8 {[%clk 0:02:35.3]} 11. e4 {[%clk 0:02:48.8]} 11...
dxc4 {[%clk 0:02:10.9]} 12. bxc4 {[%clk 0:02:48.4]} 12... e5 {[%clk 0:02:10.8]}
13. Nd5 {[%clk 0:02:20.8]} 13... c6 {[%clk 0:02:04.6]} 14. Nxf6+ {[%clk
0:01:56.5]} 14... Bxf6 {[%clk 0:01:54.6]} 15. dxe5 {[%clk 0:01:56]} 15... Be7
{[%clk 0:01:55.1]} 16. Rad1 {[%clk 0:01:50.8]} 16... Nc5 {[%clk 0:01:55.2]} 17.
Be2 {[%clk 0:01:48.9]} 17... Qc7 {[%clk 0:01:55.3]} 18. Nd4 {[%clk 0:01:46.2]}
18... g6 {[%clk 0:01:37.4]} 19. f4 {[%clk 0:01:46.1]} 19... Rfd8 {[%clk
0:01:36.2]} 20. Bg4 {[%clk 0:01:36.2]} 20... Ra8 {[%clk 0:01:32.6]} 21. e6
{[%clk 0:01:36.7]} 21... f6 {[%clk 0:01:30.2]} 22. f5 {[%clk 0:01:33.4]} 22...
g5 {[%clk 0:01:28.1]} 23. Rde1 {[%clk 0:01:16.9]} 23... Bd6 {[%clk 0:01:27.3]}
24. Nf3 {[%clk 0:01:07.4]} 24... Qe7 {[%clk 0:01:27.3]} 25. e5 {[%clk
0:01:04.7]} 25... fxe5 {[%clk 0:01:25.9]} 26. Nxe5 {[%clk 0:01:04.3]} 26... Bxe5
{[%clk 0:01:26.3]} 27. Bxe5 {[%clk 0:01:04.1]} 27... Nd3 {[%clk 0:01:26.9]} 28.
f6 {[%clk 0:01:02.7]} 28... Qc5+ {[%clk 0:01:27.1]} 29. Kh1 {[%clk 0:00:58.9]}
29... Nxe5 {[%clk 0:01:25.6]} 30. e7 {[%clk 0:00:37.5]} 30... Nxg4 {[%clk
0:01:00.3]} 31. f7+ {[%clk 0:00:37.6]} 31... Kg7 {[%clk 0:01:00.9]} 32. e8=Q
{[%clk 0:00:36.5]} 32... Rxe8 {[%clk 0:00:55.2]} 33. Rxe8 {[%clk 0:00:36.3]} 1-0

[Event "Early-Titled-Tuesday-Blitz-May-28-2024"]
[Site "Chess.com"]
[Date "2024.05.28"]
[Round "2"]
[White "aljado"]
[Black "Pomegranate988"]
[Result "0-1"]
[WhiteElo "2169"]
[BlackElo "2661"]
[TimeControl "180+1"]
[EndTime "8:17:40 PDT"]
[Termination "Pomegranate988 won by resignation"]

1. e4 {[%clk 0:03:00.9]} 1... c6 {[%clk 0:02:58.9]} 2. d4 {[%clk 0:02:59.3]}
2... g6 {[%clk 0:02:59.8]} 3. Nc3 {[%clk 0:02:57.8]} 3... d5 {[%clk 0:02:59.8]}
4. exd5 {[%clk 0:02:55.4]} 4... cxd5 {[%clk 0:03:00.7]} 5. Nf3 {[%clk
0:02:53.9]} 5... Nc6 {[%clk 0:03:00.1]} 6. Bb5 {[%clk 0:02:53.1]} 6... Bg7
{[%clk 0:02:55.8]} 7. O-O {[%clk 0:02:52]} 7... Bg4 {[%clk 0:02:51.4]} 8. h3
{[%clk 0:02:49.6]} 8... Bxf3 {[%clk 0:02:51]} 9. Qxf3 {[%clk 0:02:49.2]} 9... e6
{[%clk 0:02:51.9]} 10. Be3 {[%clk 0:02:43.5]} 10... Ne7 {[%clk 0:02:50.6]} 11.
Rad1 {[%clk 0:02:29.8]} 11... O-O {[%clk 0:02:45.9]} 12. a3 {[%clk 0:02:29]}
12... Qb6 {[%clk 0:02:41.1]} 13. Qe2 {[%clk 0:01:37]} 13... Rac8 {[%clk
0:02:29.7]} 14. Na4 {[%clk 0:01:33.9]} 14... Qc7 {[%clk 0:02:27.3]} 15. Nc5
{[%clk 0:01:30.7]} 15... b6 {[%clk 0:02:14.3]} 16. Na6 {[%clk 0:01:27.2]} 16...
Qd6 {[%clk 0:02:10.8]} 17. c3 {[%clk 0:01:22.3]} 17... Na5 {[%clk 0:02:05.4]}
18. h4 {[%clk 0:01:10.7]} 18... h5 {[%clk 0:02:00.9]} 19. Qf3 {[%clk 0:01:05]}
19... Nc4 {[%clk 0:01:58.7]} 20. Bf4 {[%clk 0:01:03.3]} 20... Qd8 {[%clk
0:01:58.6]} 21. Bg5 {[%clk 0:01:00.7]} 21... Nxb2 {[%clk 0:01:53.4]} 22. Rb1
{[%clk 0:00:58.1]} 22... Nc4 {[%clk 0:01:52.3]} 23. g4 {[%clk 0:00:55.6]} 23...
hxg4 {[%clk 0:01:50.7]} 24. Qxg4 {[%clk 0:00:55.3]} 24... Qd6 {[%clk 0:01:50.5]}
25. h5 {[%clk 0:00:47.7]} 25... f6 {[%clk 0:01:15]} 26. Bf4 {[%clk 0:00:43.9]}
26... e5 {[%clk 0:01:13.2]} 27. hxg6 {[%clk 0:00:43]} 27... exf4 {[%clk
0:01:09.4]} 28. Qh5 {[%clk 0:00:43.2]} 28... Rfd8 {[%clk 0:01:01.5]} 29. Rbe1
{[%clk 0:00:38.9]} 29... f5 {[%clk 0:00:58.6]} 30. Qg5 {[%clk 0:00:17.2]} 30...
Qxg6 {[%clk 0:00:58.1]} 0-1